bitfinex-derivatives/quotes_BTCF0:USTF0_20250710
["timestamp","ask_amount","ask_price","bid_price","bid_amount"]
[1752170961963,0.29790165,113540.0,113530.0,0.6719795]
[1752170962159,0.29790165,113540.0,113530.0,1.3240195]
[1752170962358,0.23092165,113540.0,113530.0,1.6205925]
[1752170962553,0.03888645,113540.0,113530.0,1.7245925]
[1752170962758,0.01606645,113540.0,113530.0,1.7245925]
[1752170962959,0.0001,113540.0,113530.0,1.7245925]
[1752170963157,0.01606645,113540.0,113530.0,1.7245925]
[1752170963358,0.0001,113540.0,113530.0,2.0176925]
[1752170963558,0.01606645,113540.0,113530.0,2.0176925]
[1752170963765,0.1989551,113540.0,113530.0,1.0017795]
[1752170963956,0.21492155,113540.0,113530.0,2.0171725]
[1752170964366,0.21492155,113540.0,113530.0,1.9171725]
[1752170964863,0.23092155,113540.0,113530.0,1.9171725]
[1752170965064,0.23092155,113540.0,113530.0,2.06558915]
[1752170967969,0.23092155,113540.0,113530.0,1.6519795]
[1752170968866,0.23092155,113540.0,113530.0,1.6079286]
[1752170969259,0.23092155,113540.0,113530.0,1.3148286]
[1752170969664,0.23092155,113540.0,113530.0,1.3145086]
[1752170969969,1.0040112,113540.0,113530.0,0.01]
[1752170970167,1.0366912,113540.0,113530.0,0.1860506]
[1752170970468,1.0687912,113540.0,113530.0,0.01]
[1752170970663,1.0687912,113540.0,113530.0,0.006]
[1752170970865,0.2151006,113530.0,113520.0,0.73665963]
[1752170971164,0.23106705,113530.0,113520.0,0.750423]
[1752170972469,0.23106705,113530.0,113520.0,0.7504224]
[1752170972764,0.23106705,113530.0,113520.0,0.7524224]
[1752170972969,0.23106705,113530.0,113520.0,0.7534224]
[1752170973469,0.23116705,113530.0,113520.0,0.76214438]
[1752170973670,0.23116705,113530.0,113520.0,0.7534224]
[1752170974070,0.23116705,113530.0,113520.0,0.0845245]
[1752170974366,1.0042567,113530.0,113520.0,0.0185245]
[1752170974667,0.7095367,113530.0,113520.0,0.1945907]
[1752170974970,0.29724705,113530.0,113520.0,0.1945907]
[1752170975570,0.65804705,113530.0,113520.0,0.1945907]
[1752170976568,0.65804705,113530.0,113520.0,0.0185245]
[1752170976762,1.0703367,113530.0,113520.0,0.1945907]
[1752170977259,0.29724705,113530.0,113520.0,0.0185245]
[1752170977769,0.65804705,113530.0,113520.0,0.0185245]
[1752170977966,1.0703367,113530.0,113520.0,0.0185245]
[1752170978468,1.07937304,113530.0,113520.0,0.01852626]
[1752170978663,1.72681304,113530.0,113520.0,0.01852626]
[1752170978868,1.77425088,113530.0,113520.0,0.01852626]
[1752170979066,1.72681304,113530.0,113520.0,0.01852626]
[1752170979875,1.77425088,113530.0,113520.0,0.01852626]
[1752170981285,0.1912162,113520.0,113510.0,0.17784328]
[1752170981473,1.0690723,113520.0,113510.0,0.17784328]
[1752170981669,1.0699523,113520.0,113510.0,0.17784328]
[1752170981875,1.0699523,113520.0,113510.0,0.00176188]
[1752170982270,1.2461443,113520.0,113510.0,0.17784358]
[1752170982575,0.04074645,113520.0,113510.0,1.06925727]
[1752170982774,0.23108265,113520.0,113510.0,1.03195727]
[1752170983076,0.01596645,113520.0,113510.0,1.77851727]
[1752170983276,0.3032381,113530.0,113520.0,0.1760662]
[1752170983480,0.32371272,113530.0,113520.0,0.2367662]
[1752170985274,0.32371272,113530.0,113520.0,0.24569354]
[1752170986170,0.32371272,113530.0,113520.0,0.2367662]
[1752170986580,0.35641272,113530.0,113520.0,0.2367662]
[1752170986778,0.38811272,113530.0,113520.0,0.2367662]
[1752170987275,0.76902872,113530.0,113510.0,1.21226997]
[1752170987476,0.1912162,113520.0,113510.0,1.03825082]
[1752170987674,0.23471082,113520.0,113510.0,0.39241082]
[1752170987873,0.29801082,113520.0,113510.0,1.03869082]
[1752170988080,0.29801082,113520.0,113510.0,1.03669082]
[1752170988275,0.29893082,113520.0,113510.0,1.03669082]
[1752170988580,0.29893082,113520.0,113510.0,1.03769082]
[1752170988773,0.29893082,113520.0,113510.0,1.04645838]
[1752170988969,0.29893082,113520.0,113510.0,1.45874803]
[1752170989173,0.29801082,113520.0,113510.0,1.00243878]
[1752170989380,0.29801082,113520.0,113510.0,0.19716762]
[1752170989677,0.29801082,113520.0,113510.0,0.02108592]
[1752170989678,1.07110047,113520.0,113510.0,0.02108592]
[1752170989877,1.07110047,113520.0,113510.0,0.02308592]
[1752170990474,1.71678047,113520.0,113510.0,0.02508592]
[1752170990872,1.56942944,113520.0,113510.0,0.02508592]
[1752170991887,1.56952944,113520.0,113510.0,0.02508592]
[1752170992182,0.70722866,113520.0,113510.0,0.18284358]
[1752170992384,1.61664728,113520.0,113510.0,0.18284358]
[1752170992575,1.61664728,113520.0,113510.0,0.00676188]
[1752170992770,1.35258866,113520.0,113510.0,0.00676188]
[1752170993176,1.7651344,113520.0,113510.0,0.00676188]
[1752170993377,1.7651344,113520.0,113510.0,0.02052785]
[1752170993776,0.0239,113500.0,113480.0,0.45009017]
[1752170993970,0.2151627,113490.0,113480.0,0.91089707]
[1752170994173,0.29745732,113490.0,113480.0,0.0983171]
[1752170994372,0.29833732,113490.0,113480.0,0.07998314]
[1752170994580,0.29833732,113490.0,113480.0,0.00176235]
[1752170994581,1.24791506,113490.0,113480.0,0.00176235]
[1752170994883,1.2953529,113490.0,113480.0,0.00176235]
[1752170995085,0.70655935,113490.0,113480.0,0.18289055]
[1752170995285,1.35207935,113490.0,113480.0,0.18289055]
[1752170995584,0.70655935,113490.0,113480.0,0.18289055]
[1752170995782,0.65913732,113490.0,113480.0,0.59543629]
[1752170995978,0.23563732,113490.0,113480.0,0.65833629]
[1752170996178,0.04349462,113490.0,113480.0,0.61159055]
[1752170996480,0.23485732,113490.0,113480.0,0.61159055]
[1752170996780,0.05874462,113490.0,113480.0,1.01913629]
[1752170997085,0.04359462,113490.0,113480.0,1.34951055]
[1752170997285,0.04359462,113490.0,113480.0,1.66205629]
[1752170997487,0.21970732,113490.0,113480.0,1.66205629]
[1752170997782,0.23482732,113490.0,113480.0,0.88879055]
[1752170997994,0.23482732,113490.0,113480.0,1.66213629]
[1752170998484,0.23482732,113490.0,113480.0,0.60159055]
[1752170998682,0.23482732,113490.0,113480.0,0.20819055]
[1752170998878,0.29582732,113490.0,113480.0,0.20819055]
[1752170999080,0.29674732,113490.0,113480.0,0.20819055]
[1752170999479,0.29680404,113490.0,113480.0,0.20819055]
[1752170999983,0.29680404,113490.0,113480.0,0.95123629]
[1752170999984,0.23580404,113490.0,113480.0,0.95123629]
[1752171000188,0.04365134,113490.0,113480.0,1.01633629]
[1752171000483,0.23488404,113490.0,113480.0,1.66397629]
[1752171001288,0.23488404,113490.0,113480.0,0.89071055]
[1752171001980,0.23488404,113490.0,113480.0,1.30325629]
[1752171002180,0.23488404,113490.0,113480.0,0.65553629]
[1752171002380,0.23488404,113490.0,113480.0,1.01633629]
[1752171002587,0.23488404,113490.0,113480.0,1.66409629]
[1752171002782,0.23888404,113490.0,113480.0,1.66409629]
[1752171003088,0.24088404,113490.0,113480.0,1.66409629]
[1752171003390,0.24088404,113490.0,113480.0,1.25155055]
[1752171003591,0.24088404,113490.0,113480.0,1.66409629]
[1752171003785,0.23688404,113490.0,113480.0,1.66409629]
[1752171003985,0.24088404,113490.0,113480.0,1.25155055]
[1752171004483,0.24088404,113490.0,113480.0,1.66409629]
[1752171004784,0.23888404,113490.0,113480.0,1.66409629]
[1752171005089,0.24088404,113490.0,113480.0,1.66409629]
[1752171005684,0.24088404,113490.0,113480.0,1.25155055]
[1752171006291,0.24096661,113490.0,113480.0,1.25155055]
[1752171006489,0.25096661,113490.0,113480.0,1.25155055]
[1752171006691,0.25096661,113490.0,113480.0,0.89075055]
[1752171006994,0.25096661,113490.0,113480.0,1.66409629]
[1752171008390,0.05773391,113490.0,113480.0,1.66409629]
[1752171008593,0.03483391,113490.0,113480.0,1.66409629]
[1752171008793,0.03483391,113490.0,113480.0,1.76409629]
[1752171009092,0.03483391,113490.0,113480.0,1.76401629]
[1752171009485,0.03483391,113490.0,113480.0,2.26401629]
[1752171010686,0.03283391,113490.0,113480.0,2.26401629]
[1752171010890,0.03183391,113490.0,113480.0,2.26401629]
[1752171011687,0.03183391,113490.0,113480.0,1.61633629]
[1752171011889,0.03183391,113490.0,113480.0,2.26609629]
[1752171013092,0.03183391,113490.0,113480.0,1.76609629]
[1752171013493,0.02983391,113490.0,113480.0,0.60579055]
[1752171013793,0.02983391,113490.0,113480.0,1.66649629]
[1752171014997,0.65634245,113490.0,113480.0,0.54169065]
[1752171015195,0.71822245,113490.0,113480.0,0.82753065]
[1752171015498,0.71822245,113490.0,113480.0,0.82757065]
[1752171015891,0.30567671,113490.0,113480.0,0.82757065]
[1752171016242,0.30767671,113490.0,113480.0,0.82657065]
[1752171016599,0.35709874,113490.0,113480.0,0.82457065]
[1752171017092,0.35709874,113490.0,113480.0,0.17789065]
[1752171017297,0.35709874,113490.0,113480.0,0.82425065]
[1752171020000,0.24867671,113490.0,113480.0,1.23679639]
[1752171020199,0.29524355,113490.0,113480.0,1.66039639]
[1752171020392,0.24779671,113490.0,113480.0,1.66039639]
[1752171020594,0.24779671,113490.0,113480.0,1.65959639]
[1752171020794,0.03383391,113490.0,113480.0,1.75959639]
[1752171021098,0.20994671,113490.0,113480.0,1.75959639]
[1752171021299,0.23267671,113490.0,113480.0,1.75959639]
[1752171021501,0.24779671,113490.0,113480.0,1.39863639]
[1752171021700,0.24779671,113490.0,113480.0,1.75943639]
[1752171022201,0.23267671,113490.0,113480.0,1.11403639]
[1752171022401,0.24779671,113490.0,113480.0,1.24689065]
[1752171023702,0.24779671,113490.0,113480.0,1.65943639]
[1752171024002,0.24779671,113490.0,113480.0,1.24689065]
[1752171024199,0.24779671,113490.0,113480.0,0.24069065]
[1752171024394,0.27809671,113490.0,113480.0,0.88645065]
[1752171024590,0.10198391,113490.0,113480.0,1.24725065]
[1752171024795,0.07168391,113490.0,113480.0,1.65979639]
[1752171025000,0.07168391,113490.0,113480.0,1.01403639]
[1752171025201,0.07168391,113490.0,113480.0,1.65971639]
[1752171028205,0.07168391,113490.0,113480.0,1.01403639]
[1752171028401,0.24779671,113490.0,113480.0,1.65887639]
[1752171028606,0.24579671,113490.0,113480.0,1.65887639]
[1752171029104,0.24579671,113490.0,113480.0,1.24733065]
[1752171029900,0.24579671,113490.0,113480.0,1.65987639]
[1752171031803,0.24379671,113490.0,113480.0,1.24733065]
[1752171032006,0.24579671,113490.0,113480.0,1.65987639]
[1752171032505,0.06968391,113490.0,113480.0,1.65987639]
[1752171032704,0.03083391,113490.0,113480.0,1.65987639]
[1752171034400,0.05394391,113490.0,113480.0,1.65987639]
[1752171035200,0.05394391,113490.0,113480.0,1.24733065]
[1752171035514,0.05394391,113490.0,113480.0,1.65987639]
[1752171035809,0.05394391,113490.0,113480.0,1.24733065]
[1752171036010,0.05394391,113490.0,113480.0,1.65987639]
[1752171036706,0.23005671,113490.0,113480.0,1.65987639]
[1752171037206,0.23005671,113490.0,113480.0,1.95297639]
[1752171038115,0.23005671,113490.0,113480.0,1.95105639]
[1752171039310,0.23032219,113490.0,113480.0,1.95105639]
[1752171040210,0.23032219,113490.0,113480.0,1.53851065]
[1752171040407,0.23032219,113490.0,113480.0,1.95105639]
[1752171040606,0.23032219,113490.0,113480.0,1.53851065]
[1752171040807,0.23032219,113490.0,113480.0,1.95105639]
[1752171041502,0.23032219,113490.0,113480.0,1.65795639]
[1752171042418,0.23032219,113490.0,113480.0,0.24069065]
[1752171042716,0.23032219,113490.0,113480.0,1.65635639]
[1752171043412,0.23032219,113490.0,113480.0,1.29555639]
[1752171043616,0.2103228,113490.0,113480.0,1.65635639]
[1752171044219,0.23060641,113490.0,113480.0,1.65635639]
[1752171045215,0.03138361,113490.0,113480.0,1.65635639]
[1752171045520,0.20749641,113490.0,113480.0,1.65635639]
[1752171045920,0.23060641,113490.0,113480.0,1.24381065]
[1752171046114,0.23060641,113490.0,113480.0,1.65635639]
[1752171046420,0.23060641,113490.0,113480.0,1.65643639]
[1752171046808,0.23060641,113490.0,113480.0,1.50799026]
[1752171049722,0.23060641,113490.0,113480.0,1.24389065]
[1752171049921,0.23060641,113490.0,113480.0,1.50799026]
[1752171050322,0.27809834,113490.0,113480.0,1.50799026]
[1752171050823,0.27809834,113490.0,113480.0,1.24389065]
[1752171050824,0.23060641,113490.0,113480.0,1.24389065]
[1752171051024,0.23060641,113490.0,113480.0,1.50799026]
[1752171051825,0.23060641,113490.0,113480.0,1.24389065]
[1752171052026,0.23060641,113490.0,113480.0,1.50799026]
[1752171052320,0.03138361,113490.0,113480.0,1.87208987]
[1752171052525,0.00249908,113500.0,113490.0,0.39443544]
[1752171052726,0.00249908,113500.0,113490.0,1.34623466]
[1752171052920,0.0001,113520.0,113510.0,0.29440255]
[1752171053114,0.0001,113520.0,113510.0,2.24168216]
[1752171053318,0.0001,113520.0,113510.0,3.19018177]
[1752171053624,0.0001,113530.0,113520.0,0.2760663]
[1752171053927,0.04762457,113530.0,113520.0,1.22786552]
[1752171054128,0.0001,113530.0,113520.0,1.24162761]
[1752171054926,0.0021,113530.0,113520.0,1.12574298]
[1752171056022,0.0021,113530.0,113520.0,1.13606419]
[1752171056530,0.0021,113530.0,113520.0,1.20520407]
[1752171057029,0.0021,113530.0,113520.0,1.19488286]
[1752171057223,0.0031,113530.0,113520.0,1.19488286]
[1752171057529,0.0031,113530.0,113520.0,1.19488236]
[1752171061032,0.0031,113530.0,113520.0,0.78256777]
[1752171061231,0.201701,113530.0,113520.0,0.68256777]
[1752171061433,0.201701,113530.0,113520.0,1.29534777]
[1752171061434,0.249181,113530.0,113520.0,1.29534777]
[1752171061627,0.10403,113530.0,113520.0,1.70766236]
[1752171061824,0.10403,113530.0,113520.0,1.29534777]
[1752171062026,0.10403,113530.0,113520.0,0.52571606]
[1752171062027,0.640881,113530.0,113520.0,0.52571606]
[1752171062230,1.05319559,113530.0,113520.0,0.01376159]
[1752171062425,0.1760665,113520.0,113510.0,0.64476]
[1752171062624,0.1760665,113520.0,113510.0,0.01376489]
[1752171062625,0.6377965,113520.0,113510.0,0.01376489]
[1752171062829,1.05103109,113520.0,113510.0,0.01376489]
[1752171063028,0.6387165,113520.0,113510.0,0.65872489]
[1752171063633,0.6387165,113520.0,113510.0,0.67728482]
[1752171063835,0.2779165,113520.0,113510.0,1.26568141]
[1752171064028,0.2769965,113520.0,113510.0,1.26536141]
[1752171064231,0.2607165,113520.0,113510.0,1.26536141]
[1752171064426,0.28028816,113520.0,113510.0,1.32826141]
[1752171064626,0.01957166,113520.0,113510.0,1.68906141]
[1752171064829,0.01957166,113520.0,113510.0,1.78906141]
[1752171065030,0.19563816,113520.0,113510.0,1.78906141]
[1752171065235,0.19563816,113520.0,113510.0,1.78905974]
[1752171065434,0.19563816,113520.0,113510.0,1.68905974]
[1752171065635,0.19563816,113520.0,113510.0,1.69938212]
[1752171065835,0.21818816,113520.0,113510.0,1.69938212]
[1752171066240,0.28038816,113520.0,113510.0,1.69938212]
[1752171068344,0.28038816,113520.0,113510.0,1.69938352]
[1752171068537,0.28038816,113520.0,113510.0,1.6993835]
[1752171068739,0.28038816,113520.0,113510.0,1.68906052]
[1752171069140,0.21818816,113520.0,113510.0,1.68906052]
[1752171069843,0.21818816,113520.0,113510.0,1.33752052]
[1752171070044,0.21818816,113520.0,113510.0,1.98104052]
[1752171070347,1.39938275,113520.0,113510.0,0.013764]
[1752171070646,0.2149276,113500.0,113490.0,0.01832264]
[1752171070949,0.5757276,113500.0,113490.0,0.03208923]
[1752171071149,0.6397076,113500.0,113490.0,0.67516931]
[1752171071338,0.6397076,113500.0,113490.0,0.21852741]
[1752171071543,0.6397076,113500.0,113490.0,0.86160741]
[1752171071942,0.65943137,113500.0,113490.0,0.86160741]
[1752171072341,0.65943137,113500.0,113490.0,0.86460741]
[1752171074754,0.65943137,113500.0,113490.0,0.86760741]
[1752171075654,0.12253377,113500.0,113490.0,1.640722]
[1752171075950,0.01972377,113500.0,113490.0,1.74072103]
[1752171076254,0.04227377,113500.0,113490.0,1.80272103]
[1752171076456,0.04227377,113500.0,113490.0,1.70272103]
[1752171076955,0.04227377,113500.0,113490.0,1.80272103]
[1752171077454,0.04227377,113500.0,113490.0,1.70272103]
[1752171077644,0.04227377,113500.0,113490.0,1.692397]
[1752171078047,0.04227377,113500.0,113490.0,1.792397]
[1752171078448,0.21837137,113500.0,113490.0,1.692397]
[1752171079247,0.59545137,113500.0,113490.0,0.21420241]
[1752171079455,0.65921138,113500.0,113490.0,0.03808931]
[1752171079752,1.07152597,113500.0,113490.0,0.01976667]
[1752171079952,0.1761132,113490.0,113480.0,0.00176235]
[1752171080144,1.03998156,113490.0,113480.0,0.00176235]
[1752171080345,1.04086156,113490.0,113480.0,0.00176235]
[1752171080549,0.62854697,113490.0,113480.0,0.17789105]
[1752171080751,0.26774697,113490.0,113480.0,0.60053192]
[1752171080949,0.09075377,113490.0,113480.0,0.60053192]
[1752171081147,0.07447377,113490.0,113480.0,1.75520564]
[1752171081359,0.04227377,113490.0,113480.0,1.76553118]
[1752171081757,0.23466697,113490.0,113480.0,0.82961659]
[1752171081956,0.26506697,113490.0,113480.0,0.81929105]
[1752171082262,1.03818156,113490.0,113480.0,0.81929105]
[1752171082559,0.62674697,113490.0,113480.0,0.81929105]
[1752171083147,0.65794697,113490.0,113480.0,0.81929105]
[1752171083755,0.65994697,113490.0,113480.0,0.17889105]
[1752171084749,0.65994697,113490.0,113480.0,0.00276235]
[1752171084954,0.65994697,113490.0,113480.0,0.17889105]
[1752171084955,0.72913559,113490.0,113480.0,0.17889105]
[1752171086859,0.72913559,113490.0,113480.0,0.00276235]
[1752171087161,0.72913559,113490.0,113480.0,0.17889105]
[1752171087462,1.14145018,113490.0,113480.0,0.00276235]
[1752171088661,0.72913559,113490.0,113480.0,0.17889105]
[1752171090248,0.72913559,113490.0,113480.0,0.00276235]
[1752171090561,1.14145018,113490.0,113480.0,0.00276235]
[1752171091156,0.0848147,113480.0,113450.0,0.10630284]
[1752171091362,0.2169397,113460.0,113450.0,1.38412013]
[1752171091561,0.2169397,113460.0,113450.0,1.48412013]
[1752171091752,0.2169397,113460.0,113450.0,1.90802013]
[1752171091952,0.23694809,113460.0,113450.0,1.90802013]
[1752171092456,0.23694809,113460.0,113450.0,1.39970554]
[1752171092656,0.06078839,113460.0,113450.0,1.18006652]
[1752171092862,0.04416839,113460.0,113450.0,1.93423539]
[1752171093048,0.23694809,113460.0,113450.0,1.93423539]
[1752171093254,0.23694809,113460.0,113450.0,1.83147539]
[1752171093456,0.09198839,113460.0,113450.0,1.83147539]
[1752171093659,0.09198839,113460.0,113450.0,1.83423539]
[1752171093862,0.09198839,113460.0,113450.0,1.83723539]
[1752171094165,0.2481398,113460.0,113450.0,1.19615539]
[1752171094364,0.09198052,113460.0,113450.0,1.83771539]
[1752171094761,0.26814032,113460.0,113450.0,1.83771539]
[1752171095062,0.09198052,113460.0,113450.0,1.83771539]
[1752171095450,0.26814032,113460.0,113450.0,1.4254008]
[1752171095654,0.26814032,113460.0,113450.0,1.83771539]
[1752171096157,0.2481398,113460.0,113450.0,1.82738652]
[1752171097062,0.2481399,113460.0,113450.0,1.82738652]
[1752171097263,0.07198,113460.0,113450.0,1.82738652]
[1752171097567,0.04078,113460.0,113450.0,1.82738652]
[1752171098266,0.23704617,113460.0,113450.0,1.82738652]
[1752171098859,0.06088627,113460.0,113450.0,1.82738652]
[1752171099059,0.23704617,113460.0,113450.0,1.82738652]
[1752171099259,0.23704617,113460.0,113450.0,0.82226652]
[1752171099459,0.27014617,113460.0,113450.0,1.82386652]
[1752171099767,0.27014617,113460.0,113450.0,1.1649394]
[1752171099966,0.30314617,113460.0,113450.0,1.7745194]
[1752171100363,0.30314617,113460.0,113450.0,1.78484796]
[1752171100566,0.30314617,113460.0,113450.0,1.36220481]
[1752171100758,0.30314617,113460.0,113450.0,0.68510481]
[1752171100962,0.09486627,113460.0,113450.0,0.96916481]
[1752171101162,0.01734627,113460.0,113450.0,2.21961399]
[1752171101362,0.04752457,113470.0,113460.0,0.1761599]
[1752171101560,0.04752457,113470.0,113460.0,1.11137449]
[1752171101966,0.02416,113480.0,113470.0,0.1761444]
[1752171102267,0.44002943,113500.0,113490.0,0.1761133]
[1752171102466,0.44094943,113500.0,113490.0,0.58842789]
[1752171102764,0.44094943,113500.0,113490.0,0.1761133]
[1752171103867,0.80474943,113500.0,113490.0,0.1771133]
[1752171104266,0.80474943,113500.0,113490.0,0.18605522]
[1752171105466,0.80484943,113500.0,113490.0,0.18605522]
[1752171106273,0.85227329,113500.0,113490.0,0.18605522]
[1752171106968,0.85627329,113500.0,113490.0,0.18605522]
[1752171107458,0.80884943,113500.0,113490.0,0.18605522]
[1752171108975,0.80884943,113500.0,113490.0,0.59836981]
[1752171109270,0.80884943,113500.0,113490.0,0.66196981]
[1752171109467,0.80884943,113500.0,113490.0,0.48585651]
[1752171109668,0.80884943,113500.0,113490.0,0.001]
[1752171109862,0.6627351,113500.0,113490.0,0.58942789]
[1752171110167,0.5856978,113500.0,113490.0,0.70790698]
[1752171110369,0.07964723,113500.0,113490.0,0.77300698]
[1752171110569,0.07872723,113500.0,113490.0,0.77300698]
[1752171110759,0.25482503,113500.0,113490.0,0.67300698]
[1752171110955,0.25482503,113500.0,113490.0,0.77300698]
[1752171111569,0.25482503,113500.0,113490.0,0.7818355]
[1752171112168,0.25482503,113500.0,113490.0,0.6818355]
[1752171112469,0.25482503,113500.0,113490.0,0.7818355]
[1752171112768,0.2073578,113500.0,113490.0,0.7921609]
[1752171112971,0.2073578,113500.0,113490.0,1.1529609]
[1752171113166,0.2073578,113500.0,113490.0,1.0529609]
[1752171113471,0.22748624,113500.0,113490.0,1.1529609]
[1752171113670,0.22748624,113500.0,113490.0,1.1426355]
[1752171113872,0.22748624,113500.0,113490.0,1.1529606]
[1752171114075,0.27495347,113500.0,113490.0,0.73032091]
[1752171114270,0.27495347,113500.0,113490.0,1.0426355]
[1752171114567,0.29157347,113500.0,113490.0,1.0426355]
[1752171115564,0.05138844,113500.0,113490.0,1.0426355]
[1752171116572,0.22748624,113500.0,113490.0,1.0426355]
[1752171117576,0.05138844,113500.0,113490.0,0.63032091]
[1752171117878,0.24308624,113500.0,113490.0,1.0426355]
[1752171118077,0.24308624,113500.0,113490.0,0.26952091]
[1752171118270,0.24308624,113500.0,113490.0,0.69216074]
[1752171118471,0.24308624,113500.0,113490.0,1.33236074]
[1752171118670,0.06698844,113500.0,113490.0,1.33236074]
[1752171119078,0.05138844,113500.0,113490.0,1.33236074]
[1752171119876,0.05138844,113500.0,113490.0,0.92004615]
[1752171120077,0.22748624,113500.0,113490.0,0.92004615]
[1752171120275,0.24308624,113500.0,113490.0,1.33232074]
[1752171120777,0.24308624,113500.0,113490.0,1.18407263]
[1752171121077,0.24308624,113500.0,113490.0,0.54391263]
[1752171121270,0.86795272,113500.0,113490.0,0.24744615]
[1752171121472,0.93383272,113500.0,113490.0,0.001]
[1752171121680,0.98129995,113500.0,113490.0,0.001]
[1752171122171,0.2143144,113470.0,113460.0,0.2201855]
[1752171122376,0.85930932,113470.0,113460.0,0.2201855]
[1752171122567,0.65976284,113470.0,113460.0,0.8607455]
[1752171122965,0.65976284,113470.0,113460.0,0.8607855]
[1752171124080,0.65976284,113470.0,113460.0,0.002]
[1752171124374,0.65976284,113470.0,113460.0,0.81884]
[1752171124877,0.65976284,113470.0,113460.0,0.17816]
[1752171125080,1.07268581,113470.0,113460.0,0.002]
[1752171125279,0.19176,113460.0,113450.0,0.86078192]
[1752171125470,0.62785844,113460.0,113450.0,0.86074192]
[1752171125670,0.66075844,113460.0,113450.0,9.162e-05]
[1752171125871,0.66163844,113460.0,113450.0,9.162e-05]
[1752171126071,1.07456141,113460.0,113450.0,9.162e-05]
[1752171126676,0.66163844,113460.0,113450.0,0.00409162]
[1752171127076,0.70910567,113460.0,113450.0,0.00409162]
[1752171127273,0.1918376,113410.0,113400.0,0.22206819]
[1752171127576,0.5752076,113410.0,113400.0,0.19456639]
[1752171127775,0.6387276,113410.0,113400.0,0.19456639]
[1752171128083,0.6387276,113410.0,113400.0,0.01832359]
[1752171128283,1.43275114,113410.0,113400.0,0.00176359]
[1752171128481,1.01982817,113410.0,113400.0,0.00176359]
[1752171128776,0.1762532,113400.0,113390.0,0.00871222]
[1752171128983,1.9219032,113400.0,113390.0,0.02167358]
[1752171129290,2.51208217,113400.0,113390.0,0.02167358]
[1752171129473,0.1918843,113380.0,113370.0,0.28113258]
[1752171129670,0.2144543,113380.0,113370.0,0.23705858]
[1752171129872,0.6374543,113380.0,113370.0,0.01669868]
[1752171130081,0.6383343,113380.0,113370.0,0.19299848]
[1752171130275,0.6383343,113380.0,113370.0,0.00013868]
[1752171130479,0.6383343,113380.0,113370.0,0.60592145]
[1752171130677,0.6383343,113380.0,113370.0,0.19299848]
[1752171130880,0.6383343,113380.0,113370.0,0.00013868]
[1752171131078,0.6383343,113380.0,113370.0,0.17643848]
[1752171131381,0.6403343,113380.0,113370.0,0.00013868]
[1752171131577,0.6403343,113380.0,113370.0,0.63014145]
[1752171131882,0.6423343,113380.0,113370.0,0.63014145]
[1752171132177,0.6423343,113380.0,113370.0,0.19299848]
[1752171132584,0.46605,113380.0,113370.0,0.63014145]
[1752171132772,0.46605,113380.0,113370.0,0.28171848]
[1752171132773,0.6081343,113380.0,113370.0,0.28171848]
[1752171132977,0.6131343,113380.0,113370.0,0.69464145]
[1752171133178,0.6131343,113380.0,113370.0,0.28171848]
[1752171133377,0.3608,113420.0,113370.0,1.57075642]
[1752171133574,0.43083723,113430.0,113420.0,0.1761221]
[1752171133575,0.07003723,113430.0,113420.0,0.1761221]
[1752171133886,0.01951477,113430.0,113420.0,2.34932507]
[1752171134087,0.01951477,113430.0,113420.0,2.41042507]
[1752171134286,0.01951477,113430.0,113420.0,2.31042507]
[1752171134487,0.04208477,113430.0,113420.0,2.31042507]
[1752171135075,0.01048186,113430.0,113420.0,2.41042507]
[1752171135280,0.002,113440.0,113430.0,0.1762065]
[1752171135481,0.002,113440.0,113430.0,1.19199128]
[1752171135676,0.002,113440.0,113430.0,1.36830328]
[1752171136084,0.002,113440.0,113430.0,1.35830328]
[1752171136684,0.002,113440.0,113430.0,1.36130328]
[1752171136987,0.04946723,113450.0,113440.0,0.276191]
[1752171137190,0.04946723,113450.0,113440.0,2.41699397]
[1752171137593,0.04946723,113450.0,113440.0,2.41689397]
[1752171137984,0.04946723,113450.0,113440.0,2.41741397]
[1752171138987,0.002,113450.0,113440.0,2.41741397]
[1752171139185,0.002,113450.0,113440.0,2.41941397]
[1752171139386,0.002,113450.0,113440.0,2.42441397]
[1752171139788,0.1781754,113450.0,113440.0,2.42441397]
[1752171139993,0.2007454,113450.0,113440.0,2.42441397]
[1752171140385,0.2007454,113450.0,113440.0,0.62903397]
[1752171140583,0.34288517,113450.0,113440.0,1.28179397]
[1752171140781,0.67228155,113450.0,113440.0,0.00752]
[1752171140986,0.67228155,113450.0,113440.0,0.007]
[1752171141693,0.1761909,113440.0,113430.0,1.35689757]
[1752171141990,0.32457382,113440.0,113430.0,0.9444546]
[1752171142190,0.2625409,113440.0,113430.0,0.9444546]
[1752171142390,0.2618609,113440.0,113430.0,1.28675765]
[1752171142789,0.2618609,113440.0,113430.0,0.87383468]
[1752171142991,0.2618609,113440.0,113430.0,1.28675765]
[1752171143295,0.2618609,113440.0,113430.0,0.87383468]
[1752171143486,0.05547,113440.0,113430.0,1.28675765]
[1752171143795,0.231661,113440.0,113430.0,1.43287244]
[1752171144195,0.231661,113440.0,113430.0,1.01994947]
[1752171144493,0.231661,113440.0,113430.0,1.43287244]
[1752171144693,0.05547,113440.0,113430.0,1.43287244]
[1752171144893,0.2316611,113440.0,113430.0,1.01994947]
[1752171145088,0.2316611,113440.0,113430.0,1.43287244]
[1752171145289,0.2316611,113440.0,113430.0,1.01994947]
[1752171145494,0.2316611,113440.0,113430.0,1.43287244]
[1752171145690,0.02257,113440.0,113430.0,1.43287244]
[1752171145992,0.02257,113440.0,113430.0,1.89367244]
[1752171146189,0.2333465,113450.0,113440.0,0.1761911]
[1752171146384,0.2333465,113450.0,113440.0,1.01301407]
[1752171146583,0.02457,113450.0,113440.0,1.01301407]
[1752171146984,0.02457,113450.0,113440.0,1.11301407]
[1752171147184,0.04601869,113450.0,113440.0,1.11301407]
[1752171147390,0.04601869,113450.0,113440.0,1.01301407]
[1752171148300,0.04701869,113450.0,113440.0,1.01301407]
[1752171148801,0.04701869,113450.0,113440.0,1.01349407]
[1752171149001,0.02444869,113450.0,113440.0,1.11349407]
[1752171149401,0.02444869,113450.0,113440.0,1.01349407]
[1752171150100,0.02444869,113450.0,113440.0,1.51349407]
[1752171150301,0.02244869,113450.0,113440.0,1.51449407]
[1752171150696,0.02244869,113450.0,113440.0,1.1015711]
[1752171150895,0.02244869,113450.0,113440.0,1.51649407]
[1752171151092,0.02144869,113450.0,113440.0,1.51649407]
[1752171151295,0.02144869,113450.0,113440.0,1.51749407]
[1752171152315,0.04553869,113450.0,113440.0,1.51749407]
[1752171152608,0.02144869,113450.0,113440.0,1.61749407]
[1752171153610,0.02154869,113450.0,113440.0,1.61749407]
[1752171155208,0.02154869,113450.0,113440.0,1.2045711]
[1752171155413,0.02154869,113450.0,113440.0,1.61749407]
[1752171156414,0.0215649,113450.0,113440.0,1.71749407]
[1752171157908,0.0215649,113450.0,113440.0,1.3045711]
[1752171158109,0.0215649,113450.0,113440.0,1.71749407]
[1752171159616,0.0215649,113450.0,113440.0,1.3045711]
[1752171159816,0.0215649,113450.0,113440.0,1.71749407]